[Event "2nd Cambridge Open 2024"]
[Site "Cambridge"]
[Date "2024.02.19"]
[Round "1.16"]
[White "Pert, Richard G"]
[Black "Borsos, Bogdan"]
[Result "1-0"]
[ECO "A47"]
[WhiteElo "2411"]
[BlackElo "2094"]
[Annotator "TA"]
[PlyCount "95"]
[EventDate "2024.02.18"]
[EventType "swiss"]
[EventCountry "ENG"]
[SourceTitle "playchess.com"]
[Source "ChessBase"]
[SourceQuality "1"]
[TimeControl "5400+30"]

{[%evp 9,95,12,71,70,84,78,60,51,80,72,122,100,96,76,85,64,67,65,69,91,72,62,106,109,92,60,69,42,66,62,120,109,121,59,112,0,58,14,83,77,81,74,75,75,101,103,128,128,129,77,126,164,164,141,190,161,173,181,177,181,178,168,205,183,207,210,229,234,246,188,258,241,291,205,329,0,323,0,367,350,369,338,283,306,310,282,758,775]} 1. d4 {[%emt 0:00:09]} Nf6 {[%emt 0:00:13]} 2. Nf3 {[%emt 0:00:34]} e6 {[%emt 0:02:01]} 3. Bf4 {[%emt 0:00:22]} c5 {[%emt 0:04:41]} 4. e3 {[%emt 0:00:10]} b6 {[%emt 0:02:01]} 5. Nc3 {[%emt 0:03:51]} Nh5 {[%emt 0:05:18]} (5... a6 $11) 6. Bg5 $16 {[%emt 0:06:07]} Be7 {[%emt 0:00:20]} 7. Bxe7 {[%emt 0:10:54]} Qxe7 {[%emt 0:00:11]} 8. g4 {[%emt 0:01:05][%cal Bg2g4,Bg4g5][%mdl 32] White is slightly better.} Nf6 {[%emt 0:04:53]} 9. g5 {[%emt 0:00:13]} Nh5 {[%emt 0:01:36]} (9... Nd5 $142) 10. Rg1 {[%emt 0:16:19]} Bb7 {[%emt 0:04:41]} 11. Be2 {[%emt 0:01:21] Ne5 would now be deadly.} g6 {[%emt 0:02:54]} 12. Ne5 {[%emt 0:03:07]} Ng7 {[%emt 0:02:00]} 13. h4 {[%emt 0:08:42]} cxd4 {[%emt 0:10:01]} 14. Qxd4 {[%emt 0:02:13]} Nf5 {[%emt 0:00:36]} 15. Qf4 $36 {[%emt 0:03:00][%mdl 2048] White is pushing.} d6 {[%emt 0:04:34]} 16. Ng4 {[%emt 0:01:59]} Nd7 {[%emt 0:00:30] Wards off Nf6+} 17. Bb5 {[%emt 0:01:30]} O-O-O $1 {[%emt 0:06:37]} 18. O-O-O {[%emt 0:00:56]} Kb8 {[%emt 0:02:49]} 19. Bxd7 {[%emt 0:05:46]} Qxd7 {[%emt 0:02:21]} (19... Rxd7 $14 20. Nf6 Rdd8) 20. e4 {[%emt 0:02:24]} Ng7 {[%emt 0:00:52]} 21. Ne5 {[%emt 0:03:06]} (21. Rd2 $16) 21... Qc7 {[%emt 0:08:27] [#]} (21... dxe5 $14 22. Qxe5+ Qc7 23. Qxg7 Qf4+ 24. Kb1 Bxe4) 22. Ng4 {[%emt 0:06:18] Excellent horsemanship.} (22. Nxf7 $2 Rhf8 23. Rxd6 Rxd6 (23... Qxf7 24. Rxd8#) 24. Qxd6 Rxf7 $19) ({Better is} 22. Rxd6 $1 $16 Rxd6 (22... Qxd6 $2 23. Rd1 $18) 23. Nb5) 22... Nh5 {[%emt 0:03:48]} ({Black should play} 22... Qd7 $11) 23. Qf3 {[%emt 0:01:05]} a6 {[%emt 0:03:51]} (23... f5 $11 {remains equal.} 24. gxf6 Rhf8) 24. Nf6 {[%emt 0:03:23]} Nxf6 {[%emt 0:03:03]} 25. Qxf6 {[%emt 0:00:05]} (25. gxf6 d5 $11) 25... b5 {[%emt 0:00:09]} 26. a3 {[%emt 0:00:15] Black is weak on the dark squares} h5 {[%emt 0:02:50]} 27. Rd2 {[%emt 0:02:20]} Rhe8 {[%emt 0:00:22]} 28. Rgd1 {[%emt 0:00:31]} Rd7 {[%emt 0:02:41] [#]} 29. Kb1 {[%emt 0:01:54]} (29. e5 $142 $1) 29... Qd8 {[%emt 0:02:35]} (29... Bc6 $142) 30. Qf4 {[%emt 0:01:07]} e5 {[%emt 0:01:00]} 31. Qe3 {[%emt 0:00:34]} Qc7 {[%emt 0:00:58]} (31... Re6 $16 32. Rd3 Bc6) 32. Nd5 {[%emt 0:01:02]} Bxd5 {[%emt 0:00:09]} 33. Rxd5 {[%emt 0:00:03]} Rc8 {[%emt 0:01:36]} 34. Qd2 {[%emt 0:03:13] Active counter play!} Kb7 {[%emt 0:01:28]} 35. f3 {[%emt 0:03:00]} (35. Rxd6 Rxd6 36. Qxd6 Qxc2+ 37. Ka2 Qc4+ 38. Kb1 Qxe4+ 39. Ka1 Rc7 $15 (39... Qxh4 40. Qd5+ Kb6 41. Qd6+ Kb7 42. Qxe5 $11)) 35... Rcd8 {[%emt 0:02:06]} 36. Qe2 {[%emt 0:01:04]} Qc6 {[%emt 0:00:57]} 37. R1d3 {[%emt 0:00:19]} Qc4 {[%emt 0:02:58]} 38. Qd2 {[%emt 0:01:02]} Qc6 {[%emt 0:00:22]} 39. b3 {[%emt 0:02:32]} Qc7 {[%emt 0:01:11]} (39... Ka8 $142 40. Rc3 Qb6) 40. Kb2 $18 {[%emt 0:00:14]} Qc6 {[%emt 0:00:39]} 41. Qb4 {[%emt 0:01:44] Strongly threatening a4.} Rc7 {[%emt 0:01:25]} (41... Ka7 {might work better.} 42. Rc3 Qb7) 42. Qd2 {[%emt 0:01:16]} (42. Rxd6 $2 Qxc2+ 43. Ka1 Qc1+ 44. Ka2 Rc2#) 42... Rcd7 $1 {[%emt 0:00:15]} 43. Qb4 {[%emt 0:02:19]} Rc7 $1 {[%emt 0:00:22]} 44. c4 {[%emt 0:00:16]} (44. Rxd6 $2 Qxc2+ 45. Ka1 Qc1+ 46. Ka2 Rc2#) 44... Qb6 {[%emt 0:01:43]} 45. Rxd6 {[%emt 0:00:32]} Rxd6 {[%emt 0:00:10]} 46. Rxd6 {[%emt 0:00:50]} (46. Qxd6 Qf2+ 47. Rd2 Qxf3 48. Qd5+ (48. Qxe5 bxc4 49. bxc4 Qe3 $18) 48... Kb8 $18) 46... Qf2+ {[%emt 0:00:13]} 47. Rd2 {[%emt 0:01:21]} Qe1 {[%emt 0:02:34]} (47... Qb6 48. cxb5 Qg1 49. bxa6+ Ka7) 48. a4 {[%emt 0:00:38] Weighted Error Value: White=0.36/Black=0.22 (precise) .  Mistake:       	White=3     	Black=10     Inaccurate:     	White=3     	Black=2      OK:         	White=14    	Black=11     Best:        	White=4     	Black=2      Strong:       	---       	Black=3} ({Weaker is} 48. cxb5 Qc1+ 49. Ka2 Rc2+ 50. Rxc2 Qxc2+ 51. Ka1 Qc1+ 52. Ka2 Qc2+ 53. Ka1 Qc1+ 54. Ka2 Qc2+ $11) 1-0

[Event "2nd Cambridge Open 2024"]
[Site "Cambridge"]
[Date "2024.02.19"]
[Round "1.17"]
[White "Payne, Matthew J"]
[Black "Derakhshani, Borna"]
[Result "0-1"]
[ECO "B60"]
[WhiteElo "2091"]
[BlackElo "2369"]
[Annotator "TA"]
[PlyCount "72"]
[EventDate "2024.02.18"]
[EventType "swiss"]
[EventCountry "ENG"]
[SourceTitle "playchess.com"]
[Source "ChessBase"]
[SourceQuality "1"]
[TimeControl "5400+30"]

{[%evp 17,72,25,18,28,28,21,20,-6,0,-139,-129,-133,-121,-202,-182,-399,-225,-309,-276,-352,-345,-321,-323,-372,-385,-370,-346,-327,-296,-298,-298,-306,-245,-281,-250,-240,-207,-217,-225,-244,-256,-510,-490,-470,-295,-371,-299,-332,-325,-514,-448,-430,-408,-732,-721,-816,-832]} 1. e4 {[%emt 0:00:10]} c5 {[%emt 0:01:19]} 2. Nf3 {[%emt 0:00:31]} Nc6 {[%emt 0:04:19]} 3. d4 {[%emt 0:00:15]} cxd4 {[%emt 0:00:05]} 4. Nxd4 {[%emt 0:00:10]} Nf6 {[%emt 0:01:47]} 5. Nc3 {[%emt 0:00:08]} d6 {[%emt 0:00:04]} 6. Bg5 {[%emt 0:01:30]} Bd7 {[%emt 0:00:55]} 7. Be2 {[%emt 0:03:04]} Qa5 {[%emt 0:04:03]} 8. Bxf6 {[%emt 0:05:31]} gxf6 {[%emt 0:00:05][%cal Bg7f6,Bf6f5][%mdl 32]} 9. Nb3 {[%emt 0:04:23]} Qg5 {[%emt 0:03:14]} 10. g3 {[%emt 0:07:53]} f5 {[%emt 0:13:11]} 11. f4 {[%emt 0:12:28]} Qg6 {[%emt 0:01:21]} 12. Bf3 {[%emt 0:01:12] The position is equal.} Bg7 {[%emt 0:06:29]} 13. e5 {[%emt 0:15:05]} dxe5 $17 {[%emt 0:14:41]} 14. Nc5 {[%emt 0:01:07][%csl LRb7,LRd7]} Bc8 {[%emt 0:17:03]} 15. fxe5 {[%emt 0:04:46]} (15. Bxc6+ $17 Qxc6 16. Qd5) 15... Nxe5 $19 {[%emt 0:03:47]} ({Don't take} 15... Bxe5 16. Nd3) 16. O-O $2 {[%emt 0:09:49] [#]} (16. Bg2 {keeps fighting.}) 16... O-O {[%emt 0:02:47]} (16... Nxf3+ $142 17. Rxf3 Qb6) 17. Qd5 {[%emt 0:05:52]} e6 {[%emt 0:01:23]} 18. Qd1 {[%emt 0:03:21]} Nxf3+ {[%emt 0:00:35]} 19. Rxf3 {[%emt 0:00:05]} b6 {[%emt 0:00:08]} 20. Nd7 {[%emt 0:02:34]} Rd8 {[%emt 0:01:16]} 21. Rd3 {[%emt 0:00:07]} Ba6 {[%emt 0:01:43]} 22. Rd6 {[%emt 0:00:55]} Qg5 {[%emt 0:02:38] And now ...Qe3+ would win.} 23. Qf3 {[%emt 0:01:20]} Rac8 {[%emt 0:02:57]} 24. Rad1 {[%emt 0:03:04]} Re8 {[%emt 0:04:45]} 25. h4 {[%emt 0:04:44]} Qe7 {[%emt 0:00:43] ...Rc4 would now be deadly.} 26. Qe3 {[%emt 0:00:56]} Rcd8 {[%emt 0:00:28]} 27. Qg5 {[%emt 0:03:24][%cal Od7f6]} Kh8 {[%emt 0:05:21]} 28. Qe3 {[%emt 0:07:06]} h6 {[%emt 0:01:09]} 29. Ne5 $2 {[%emt 0:00:29] [#]} (29. a3) 29... Rxd6 {[%emt 0:01:19]} 30. Rxd6 {[%emt 0:00:01]} Bc8 {[%emt 0:01:44][%cal Oh8h7] Wards off Rd7} 31. Qf4 {[%emt 0:02:14]} Kg8 {[%emt 0:00:54]} (31... Qxd6 $2 {too greedy.} 32. Nxf7+ Kg8 33. Nxd6 $18) 32. Nc6 {[%emt 0:00:15]} Qb7 {[%emt 0:01:08]} 33. Qc4 {[%emt 0:00:51]} (33. Nd8 $142 Qc7 34. Nc6) 33... Bd7 {[%emt 0:00:38] Hoping for ...Bf8.} 34. Nb4 {[%emt 0:01:21]} Be5 {[%emt 0:01:10] This pair of bishops is nice.} 35. Rd3 {[%emt 0:00:24]} (35. Rd2 $142) 35... a5 {[%emt 0:00:56]} 36. Na6 {[%emt 0:00:39]} Rc8 {[%emt 0:00:24] White did not feel at home in the position after the opening.   Weighted Error Value: White=0.73/Black=0.29 (precise) .  Mistake:       	White=6     	Black=1      Inaccurate:     	White=2     	Black=1      OK:         	White=7     	Black=12     Best:        	---       	Black=2} 0-1

[Event "2nd Cambridge Open 2024"]
[Site "Cambridge"]
[Date "2024.02.19"]
[Round "1.19"]
[White "Pert, Max"]
[Black "Wells, Peter K"]
[Result "0-1"]
[ECO "E12"]
[WhiteElo "1950"]
[BlackElo "2341"]
[Annotator "ChessBase"]
[PlyCount "61"]
[EventDate "2024.02.18"]
[EventType "swiss"]
[EventCountry "ENG"]
[SourceTitle "playchess.com"]
[Source "ChessBase"]
[SourceQuality "1"]
[TimeControl "5400+30"]

1. d4 {[%emt 0:00:03]} Nf6 {[%emt 0:00:21]} 2. c4 {[%emt 0:01:26]} e6 {[%emt 0:00:15]} 3. Nf3 {[%emt 0:00:33]} b6 {[%emt 0:06:23]} 4. a3 {[%emt 0:02:09]} Bb7 {[%emt 0:00:20]} 5. Nc3 {[%emt 0:01:38]} d5 {[%emt 0:00:17]} 6. cxd5 {[%emt 0:03:07]} Nxd5 {[%emt 0:00:27]} 7. Bd2 {[%emt 0:03:54]} Nd7 {[%emt 0:12:38]} 8. Nxd5 {[%emt 0:02:25]} exd5 {[%emt 0:02:50]} 9. e3 {[%emt 1:19:45]} Bd6 {[%emt 0:03:04]} 10. Bd3 {[%emt 0:00:00]} O-O {[%emt 0:03:10]} 11. O-O {[%emt 0:00:00]} Qe7 {[%emt 0:03:56]} 12. b4 {[%emt 0:00:00]} Nf6 {[%emt 0:03:11]} 13. Bc3 {[%emt 0:00:00]} Ne4 {[%emt 0:08:36]} 14. Bb2 {[%emt 0:00:00]} a6 {[%emt 0:18:58]} 15. Qe2 {[%emt 0:00:00]} Rfe8 {[%emt 0:07:17]} 16. Rfc1 {[%emt 0:00:00]} Qe6 {[%emt 0:02:28]} 17. Qc2 {[%emt 0:00:00]} Rac8 {[%emt 0:07:14]} 18. Qe2 {[%emt 0:00:00]} Ra8 {[%emt 0:03:28]} 19. Qc2 {[%emt 0:00:00]} Re7 {[%emt 0:05:32]} 20. Ne5 {[%emt 0:00:00]} f6 {[%emt 0:01:30]} 21. Nf3 {[%emt 0:00:00]} Rf8 {[%emt 0:06:01]} 22. Re1 {[%emt 0:00:00]} g5 {[%emt 0:01:03]} 23. Nd2 {[%emt 0:00:00]} f5 {[%emt 0:00:24]} 24. Nf1 {[%emt 0:00:00]} g4 {[%emt 0:00:27]} 25. Kh1 {[%emt 0:00:54]} Qh6 {[%emt 0:01:09]} 26. Qe2 {[%emt 0:03:17]} Bxh2 {[%emt 0:00:36]} 27. Bxe4 {[%emt 0:01:15]} Bd6+ {[%emt 0:00:09]} 28. Kg1 {[%emt 0:00:05]} fxe4 {[%emt 0:00:19]} 29. Qxg4+ {[%emt 0:01:05]} Rg7 {[%emt 0:00:07]} 30. Qe2 {[%emt 0:00:11]} Bc8 {[%emt 0:00:45]} 31. Nd2 {[%emt 0:04:13]} 0-1

[Event "2nd Cambridge Open 2024"]
[Site "Cambridge"]
[Date "2024.02.19"]
[Round "1.20"]
[White "York-Weaving, Richard"]
[Black "Bharat Kumar, Balahari"]
[Result "1-0"]
[ECO "B51"]
[WhiteElo "2343"]
[BlackElo "1995"]
[Annotator "ChessBase"]
[PlyCount "49"]
[EventDate "2024.02.18"]
[EventType "swiss"]
[EventCountry "ENG"]
[SourceTitle "playchess.com"]
[Source "ChessBase"]
[SourceQuality "1"]
[TimeControl "5400+30"]

1. e4 {[%emt 0:00:03]} c5 {[%emt 0:05:38]} 2. Nf3 {[%emt 0:00:06]} d6 {[%emt 0:00:08]} 3. Bb5+ {[%emt 0:00:13]} Nd7 {[%emt 0:03:22]} 4. c3 {[%emt 0:00:25]} Ngf6 {[%emt 0:02:35]} 5. Qe2 {[%emt 0:00:20]} a6 {[%emt 0:02:16]} 6. Ba4 {[%emt 0:00:15]} b5 {[%emt 0:04:31]} 7. Bc2 {[%emt 0:00:09]} Bb7 {[%emt 0:02:14]} 8. d4 {[%emt 0:03:06]} e6 {[%emt 0:08:13]} 9. O-O {[%emt 0:00:44]} Be7 {[%emt 0:02:06]} 10. Re1 {[%emt 0:01:13]} Qc7 {[%emt 0:09:48]} 11. Bd3 {[%emt 0:02:24]} h6 {[%emt 0:10:53]} 12. Nbd2 {[%emt 0:02:41]} O-O {[%emt 0:01:07]} 13. e5 {[%emt 0:19:35]} Nd5 {[%emt 0:04:49]} 14. Qe4 {[%emt 0:05:27]} N5f6 {[%emt 0:03:18]} 15. Qh4 {[%emt 0:03:38]} Nd5 {[%emt 0:02:07]} 16. Qg3 {[%emt 0:02:36]} Kh8 {[%emt 0:15:35]} 17. Ne4 {[%emt 0:02:46]} dxe5 {[%emt 0:00:34]} 18. dxe5 {[%emt 0:01:02]} c4 {[%emt 0:07:57]} 19. Bc2 {[%emt 0:01:11]} Nc5 {[%emt 0:03:02]} 20. Qh3 {[%emt 0:08:37]} f5 {[%emt 0:05:02]} 21. exf6 {[%emt 0:13:09]} Bxf6 {[%emt 0:02:08]} 22. Bxh6 {[%emt 0:02:19]} gxh6 {[%emt 0:01:37]} 23. Qxh6+ {[%emt 0:00:43]} Kg8 {[%emt 0:00:35]} 24. Nxc5 {[%emt 0:00:25]} Bc8 {[%emt 0:01:29]} 25. Ng5 {[%emt 0:08:03]} 1-0

[Event "2nd Cambridge Open 2024"]
[Site "Cambridge"]
[Date "2024.02.19"]
[Round "1.21"]
[White "Rushbrooke, Remy"]
[Black "Golubovic, Boris"]
[Result "0-1"]
[ECO "A07"]
[WhiteElo "2049"]
[BlackElo "2342"]
[Annotator "RC"]
[PlyCount "172"]
[EventDate "2024.02.18"]
[EventType "swiss"]
[EventCountry "ENG"]
[SourceTitle "playchess.com"]
[Source "ChessBase"]
[SourceQuality "1"]
[TimeControl "5400+30"]

1. Nf3 {[%emt 0:00:06]} d5 {[%emt 0:00:16]} 2. g3 {[%emt 0:00:13]} Bg4 {[%emt 0:01:01]} 3. Bg2 {[%emt 0:02:23]} Nd7 {[%emt 0:00:48]} 4. c4 {[%emt 0:01:54]} e6 {[%emt 0:04:10]} 5. cxd5 {[%emt 0:09:08]} exd5 {[%emt 0:00:36]} 6. b3 {[%emt 0:02:10]} Ngf6 {[%emt 0:02:46]} 7. Bb2 {[%emt 0:00:07]} Bd6 {[%emt 0:00:16]} 8. O-O {[%emt 0:01:07]} O-O {[%emt 0:00:11]} 9. d3 {[%emt 0:03:42]} Re8 {[%emt 0:02:30]} 10. Nbd2 {[%emt 0:01:26]} a5 {[%emt 0:09:38]} 11. h3 {[%emt 0:05:13]} Bh5 {[%emt 0:04:24]} 12. g4 {[%emt 0:18:11]} Bg6 {[%emt 0:00:08]} 13. Nh4 {[%emt 0:10:03]} c6 {[%emt 0:07:36]} 14. Nxg6 {[%emt 0:01:00]} hxg6 {[%emt 0:00:10]} 15. a3 {[%emt 0:06:06]} Qb6 {[%emt 0:18:03]} 16. e3 {[%emt 0:04:06]} Nc5 {[%emt 0:05:44]} 17. Bd4 {[%emt 0:09:04]} Qa6 {[%emt 0:01:35]} 18. Bxc5 {[%emt 0:01:31]} Bxc5 {[%emt 0:00:08]} 19. Qc2 {[%emt 0:00:42]} Bd6 {[%emt 0:05:51]} 20. Nf3 {[%emt 0:00:25]} Qb6 {[%emt 0:01:19]} 21. Qb2 {[%emt 0:01:00]} Nd7 {[%emt 0:02:30]} 22. d4 {[%emt 0:03:25]} Nf8 {[%emt 0:06:49]} 23. b4 {[%emt 0:04:52]} Ne6 {[%emt 0:04:46]} 24. Rfb1 {[%emt 0:03:17]} Re7 {[%emt 0:08:50]} 25. Ra2 {[%emt 0:04:10]} Rd8 {[%emt 0:02:48]} 26. Qd2 {[%emt 0:01:07]} axb4 {[%emt 0:04:54]} 27. axb4 {[%emt 0:00:25]} Nc7 {[%emt 0:00:15]} 28. Bf1 {[%emt 0:01:23]} Ree8 {[%emt 0:00:07]} 29. Bd3 {[%emt 0:06:44]} Ra8 {[%emt 0:00:06]} 30. Rab2 {[%emt 0:00:00]} Ra3 {[%emt 0:00:10]} 31. Qc2 {[%emt 0:00:00]} Nb5 {[%emt 0:03:42]} 32. Kg2 {[%emt 0:00:00]} Raa8 {[%emt 0:00:42]} 33. Rh1 {[%emt 0:00:00]} Na3 {[%emt 0:01:24]} 34. Qe2 {[%emt 0:00:00]} Ra4 {[%emt 0:00:12]} 35. h4 {[%emt 0:00:00]} Rxb4 {[%emt 0:00:09]} 36. Rxb4 {[%emt 0:00:00]} Qxb4 {[%emt 0:00:07]} 37. h5 {[%emt 0:00:00]} gxh5 {[%emt 0:00:08]} 38. gxh5 {[%emt 0:01:07]} Qb6 {[%emt 0:01:10]} 39. Ng5 {[%emt 0:01:16]} Be7 {[%emt 0:01:24]} 40. Qg4 {[%emt 0:00:26]} Bxg5 {[%emt 0:00:32]} 41. Qxg5 {[%emt 0:00:01]} Qd8 {[%emt 0:00:09]} 42. Qg4 {[%emt 0:00:16]} Qf6 {[%emt 0:03:26]} 43. Rh3 {[%emt 0:00:26]} Nc4 {[%emt 0:00:00]} 44. Rf3 {[%emt 0:00:29]} Qh6 {[%emt 0:00:00]} 45. Bg6 {[%emt 0:02:10]} Nd6 {[%emt 0:00:00]} 46. Qg3 {[%emt 0:01:28]} fxg6 {[%emt 0:00:12]} 47. Qxd6 {[%emt 0:00:02]} gxh5 {[%emt 0:00:18]} 48. Qd7 {[%emt 0:01:05]} Qg5+ {[%emt 0:00:35]} 49. Kh2 {[%emt 0:00:17]} Qh4+ {[%emt 0:01:16]} 50. Kg2 {[%emt 0:00:30]} Qg4+ {[%emt 0:00:30]} 51. Qxg4 {[%emt 0:00:03]} hxg4 {[%emt 0:00:04]} 52. Rg3 {[%emt 0:00:05]} Re4 {[%emt 0:00:06]} 53. Kf1 {[%emt 0:00:02]} Kf7 {[%emt 0:00:14]} 54. Ke2 {[%emt 0:00:03]} Kf6 {[%emt 0:01:00]} 55. Kd3 {[%emt 0:00:06]} Kf5 {[%emt 0:00:08]} 56. f3 {[%emt 0:02:31]} gxf3 {[%emt 0:00:32]} 57. Rxg7 {[%emt 0:00:30]} Re6 {[%emt 0:00:04]} 58. Rg3 {[%emt 0:00:42]} Rh6 {[%emt 0:00:23]} 59. Rxf3+ {[%emt 0:00:04]} Ke6 {[%emt 0:00:05]} 60. e4 {[%emt 0:00:30]} dxe4+ {[%emt 0:00:45]} 61. Kxe4 {[%emt 0:00:01]} b5 {[%emt 0:00:36]} 62. Kd3 {[%emt 0:00:14]} Rh5 {[%emt 0:00:53]} 63. Rf8 {[%emt 0:01:03]} Rh3+ {[%emt 0:00:18]} 64. Ke4 {[%emt 0:00:08]} b4 {[%emt 0:01:34]} 65. Rb8 {[%emt 0:00:09]} b3 {[%emt 0:00:01]} 66. Rb6 {[%emt 0:00:59]} Kd7 {[%emt 0:00:06]} 67. Rb7+ {[%emt 0:00:47]} Kd6 {[%emt 0:00:10]} 68. Rb6 {[%emt 0:00:11]} Kc7 {[%emt 0:00:50]} 69. Rb4 {[%emt 0:00:05]} Rc3 {[%emt 0:00:18]} 70. Ke5 {[%emt 0:00:41]} Rh3 {[%emt 0:01:06]} 71. Ke4 {[%emt 0:00:13]} Rc3 {[%emt 0:01:24]} 72. Kf4 {[%emt 0:01:21]} c5 {[%emt 0:00:18]} 73. dxc5 {[%emt 0:00:31]} Kc6 {[%emt 0:00:05]} 74. Ke4 {[%emt 0:00:14]} Kxc5 {[%emt 0:00:06]} 75. Rb8 {[%emt 0:00:10]} Rh3 {[%emt 0:00:11]} 76. Rb7 {[%emt 0:00:28]} Kc4 {[%emt 0:00:11]} 77. Rc7+ {[%emt 0:00:02]} Kb4 {[%emt 0:00:08]} 78. Kd4 {[%emt 0:00:35]} b2 {[%emt 0:01:04]} 79. Rb7+ {[%emt 0:00:11]} Ka3 {[%emt 0:00:08]} 80. Ra7+ {[%emt 0:01:04]} Kb3 {[%emt 0:00:08]} 81. Rb7+ {[%emt 0:00:02]} Kc2 {[%emt 0:00:26]} 82. Rc7+ {[%emt 0:00:13]} Kd2 {[%emt 0:00:13]} 83. Rb7 {[%emt 0:00:06]} Rh4+ {[%emt 0:00:43]} 84. Kd5 {[%emt 0:00:03]} Kc2 {[%emt 0:00:23]} 85. Rc7+ {[%emt 0:00:07]} Kb3 {[%emt 0:00:06]} 86. Rb7+ {[%emt 0:00:42]} Rb4 {[%emt 0:00:30]} 0-1

[Event "2nd Cambridge Open 2024"]
[Site "Cambridge"]
[Date "2024.02.19"]
[Round "1.22"]
[White "Gourlay, Iain"]
[Black "Ward, Ieuan C"]
[Result "1-0"]
[ECO "D30"]
[WhiteElo "2301"]
[BlackElo "2028"]
[Annotator "ChessBase"]
[PlyCount "55"]
[EventDate "2024.02.18"]
[EventType "swiss"]
[EventCountry "ENG"]
[SourceTitle "playchess.com"]
[Source "ChessBase"]
[SourceQuality "1"]
[TimeControl "5400+30"]

1. Nf3 {[%emt 0:05:25]} e6 {[%emt 0:01:48]} 2. g3 {[%emt 0:01:51]} d5 {[%emt 0:00:07]} 3. Bg2 {[%emt 0:00:21]} Nf6 {[%emt 0:00:04]} 4. O-O {[%emt 0:00:39]} Be7 {[%emt 0:00:06]} 5. c4 {[%emt 0:00:21]} O-O {[%emt 0:00:06]} 6. b3 {[%emt 0:00:34]} c5 {[%emt 0:00:50]} 7. cxd5 {[%emt 0:00:56]} exd5 {[%emt 0:00:45]} 8. d4 {[%emt 0:00:44]} b6 {[%emt 0:00:39]} 9. Nc3 {[%emt 0:03:06]} Bb7 {[%emt 0:00:44]} 10. Ba3 {[%emt 0:14:16]} Nbd7 {[%emt 0:01:22]} 11. Nh4 {[%emt 0:08:45]} g6 {[%emt 0:23:29]} 12. dxc5 {[%emt 0:05:20]} Nxc5 {[%emt 0:01:50]} 13. Nf3 {[%emt 0:02:08]} Nfe4 {[%emt 0:05:25]} 14. Rc1 {[%emt 0:07:03]} Nxc3 {[%emt 0:08:17]} 15. Rxc3 {[%emt 0:00:10]} Ne4 {[%emt 0:00:05]} 16. Bxe7 {[%emt 0:01:22]} Qxe7 {[%emt 0:00:06]} 17. Rc1 {[%emt 0:03:26]} Rac8 {[%emt 0:02:27]} 18. Qd4 {[%emt 0:04:22]} Qa3 {[%emt 0:02:07]} 19. Qa1 {[%emt 0:04:32]} Rc5 {[%emt 0:07:39]} 20. Ne5 {[%emt 0:07:11]} Rfc8 {[%emt 0:25:42]} 21. Rcd1 {[%emt 0:05:39]} Nc3 {[%emt 0:05:11]} 22. Rd2 {[%emt 0:00:38]} Ne4 {[%emt 0:04:36]} 23. Bxe4 {[%emt 0:06:02]} dxe4 {[%emt 0:00:58]} 24. Nxf7 {[%emt 0:01:20]} Kxf7 {[%emt 0:06:02]} 25. Rd7+ {[%emt 0:00:28]} Ke6 {[%emt 0:00:39]} 26. Qg7 {[%emt 0:07:34]} Bd5 {[%emt 0:01:53]} 27. Qe7+ {[%emt 0:01:46]} Kf5 {[%emt 0:00:05]} 28. Rxd5+ {[%emt 0:00:22]} 1-0

[Event "2nd Cambridge Open 2024"]
[Site "Cambridge"]
[Date "2024.02.19"]
[Round "1.23"]
[White "Golubovic, Erik"]
[Black "Vardanyan, Aras"]
[Result "0-1"]
[ECO "E90"]
[WhiteElo "2025"]
[BlackElo "2284"]
[Annotator "ChessBase"]
[PlyCount "76"]
[EventDate "2024.02.18"]
[EventType "swiss"]
[EventCountry "ENG"]
[SourceTitle "playchess.com"]
[Source "ChessBase"]
[SourceQuality "1"]
[TimeControl "5400+30"]

1. d4 {[%emt 0:00:04]} Nf6 {[%emt 0:00:10]} 2. Nf3 {[%emt 0:00:09]} g6 {[%emt 0:00:34]} 3. c4 {[%emt 0:00:18]} Bg7 {[%emt 0:00:07]} 4. Nc3 {[%emt 0:00:05]} O-O {[%emt 0:00:23]} 5. e4 {[%emt 0:00:25]} d6 {[%emt 0:00:17]} 6. h3 {[%emt 0:00:15]} e5 {[%emt 0:00:05]} 7. d5 {[%emt 0:00:06]} Nh5 {[%emt 0:00:06]} 8. g3 {[%emt 0:00:26]} f5 {[%emt 0:00:06]} 9. exf5 {[%emt 0:00:19]} gxf5 {[%emt 0:00:07]} 10. Nh4 {[%emt 0:01:03]} Nf4 {[%emt 0:00:12]} 11. Bd2 {[%emt 0:01:14]} Ng6 {[%emt 0:01:15]} 12. Nf3 {[%emt 0:09:26]} e4 {[%emt 0:14:45]} 13. Ng5 {[%emt 0:08:52]} Qf6 {[%emt 0:09:52]} 14. Qh5 {[%emt 0:20:04]} h6 {[%emt 0:00:10]} 15. Ne6 {[%emt 0:00:19]} Bxe6 {[%emt 0:02:11]} 16. dxe6 {[%emt 0:00:22]} Qxe6 {[%emt 0:02:30]} 17. O-O-O {[%emt 0:05:43]} Ne5 {[%emt 0:02:02]} 18. g4 {[%emt 0:10:03]} Nbc6 {[%emt 0:09:22]} 19. gxf5 {[%emt 0:04:39]} Rxf5 {[%emt 0:00:48]} 20. Qh4 {[%emt 0:00:22]} Nf3 {[%emt 0:07:39]} 21. Qxe4 {[%emt 0:02:40]} Qxe4 {[%emt 0:01:00]} 22. Nxe4 {[%emt 0:00:03]} Nxd2 {[%emt 0:01:35]} 23. Rxd2 {[%emt 0:00:11]} Re8 {[%emt 0:00:31]} 24. Bg2 {[%emt 0:02:16]} Ne5 {[%emt 0:03:08]} 25. Ng3 {[%emt 0:11:40]} Rf4 {[%emt 0:08:37]} 26. Bd5+ {[%emt 0:03:12]} Kf8 {[%emt 0:04:12]} 27. Nh5 {[%emt 0:04:08]} Rh4 {[%emt 0:00:34]} 28. f4 {[%emt 0:06:56]} Ng6 {[%emt 0:04:59]} 29. Nxg7 {[%emt 0:02:12]} Kxg7 {[%emt 0:00:07]} 30. Rg2 {[%emt 0:06:38]} Kf6 {[%emt 0:01:24]} 31. f5 {[%emt 0:00:14]} Nf4 {[%emt 0:01:43]} 32. Rg4 {[%emt 0:00:12]} Rxg4 {[%emt 0:01:51]} 33. hxg4 {[%emt 0:00:08]} c6 {[%emt 0:00:46]} 34. Rxh6+ {[%emt 0:01:56]} Kg5 {[%emt 0:00:42]} 35. Bf7 {[%emt 0:00:17]} Re1+ {[%emt 0:00:09]} 36. Kd2 {[%emt 0:00:05]} Re2+ {[%emt 0:00:05]} 37. Kd1 {[%emt 0:00:42]} Kxh6 {[%emt 0:00:07]} 38. f6 {[%emt 0:00:08]} Kg5 {[%emt 0:00:12]} 0-1